[Event "NJSK 2026 Jeugd C"]
[Site "Helmond, Netherlands"]
[Date "2026.04.27"]
[Round "4.8"]
[White "Leenen, Boyd"]
[Black "Zhou, Yanyang"]
[Result "1-0"]
[TimeControl "90min/40moves + 30sec/move"]
[WhiteTitle "-"]
[BlackTitle "-"]
[WhiteFideId "1083937"]
[BlackFideId "40109739"]
[WhiteElo "2205"]
[BlackElo "1860"]

1. d4 {[%clk 01:30:57]} {[%emt 00:00:02]} Nf6 {[%clk 01:30:53]} {[%emt
00:00:08]} 2. c4 {[%clk 01:31:23]} {[%emt 00:00:04]} e6 {[%clk 01:31:17]}
{[%emt 00:00:05]} 3. Nf3 {[%clk 01:31:49]} {[%emt 00:00:04]} d5 {[%clk
01:31:35]} {[%emt 00:00:12]} 4. Nc3 {[%clk 01:32:15]} {[%emt 00:00:05]} c6
{[%clk 01:31:57]} {[%emt 00:00:08]} 5. Bg5 {[%clk 01:32:36]} {[%emt 00:00:08]}
Be7 {[%clk 01:31:13]} {[%emt 00:01:13]} 6. e3 {[%clk 01:32:19]} {[%emt
00:00:48]} Nbd7 {[%clk 01:31:23]} {[%emt 00:00:20]} 7. cxd5 {[%clk 01:32:32]}
{[%emt 00:00:18]} exd5 {[%clk 01:31:15]} {[%emt 00:00:38]} 8. Bd3 {[%clk
01:32:53]} {[%emt 00:00:08]} h6 {[%clk 01:31:27]} {[%emt 00:00:17]} 9. Bh4
{[%clk 01:33:17]} {[%emt 00:00:07]} O-O {[%clk 01:30:31]} {[%emt 00:01:26]} 10.
O-O {[%clk 01:33:41]} {[%emt 00:00:05]} Ne8 {[%clk 01:29:37]} {[%emt 00:01:25]}
11. Bg3 {[%clk 01:33:01]} {[%emt 00:01:11]} Bd6 {[%clk 01:27:37]} {[%emt
00:02:30]} 12. Bxd6 {[%clk 01:32:21]} {[%emt 00:01:09]} Nxd6 {[%clk 01:28:03]}
{[%emt 00:00:05]} 13. b4 {[%clk 01:32:37]} {[%emt 00:00:14]} b5 {[%clk
01:28:09]} {[%emt 00:00:23]} 14. a4 {[%clk 01:32:48]} {[%emt 00:00:20]} Ba6
{[%clk 01:21:34]} {[%emt 00:07:05]} 15. axb5 {[%clk 01:21:57]} {[%emt
00:11:21]} Bxb5 {[%clk 01:21:42]} {[%emt 00:00:21]} 16. Bxb5 {[%clk 01:06:02]}
{[%emt 00:16:25]} Nxb5 {[%clk 01:21:01]} {[%emt 00:01:11]} 17. Nxb5 {[%clk
01:05:57]} {[%emt 00:00:36]} cxb5 {[%clk 01:21:27]} {[%emt 00:00:04]} 18. Ra6
{[%clk 01:06:14]} {[%emt 00:00:13]} Nb8 {[%clk 01:16:20]} {[%emt 00:05:37]} 19.
Ra3 {[%clk 01:05:34]} {[%emt 00:01:09]} a5 {[%clk 01:13:23]} {[%emt 00:03:27]}
20. bxa5 {[%clk 00:58:16]} {[%emt 00:07:48]} Rxa5 {[%clk 01:12:58]} {[%emt
00:00:56]} 21. Rxa5 {[%clk 00:58:20]} {[%emt 00:00:26]} Qxa5 {[%clk 01:13:21]}
{[%emt 00:00:07]} 22. Qb3 {[%clk 00:58:47]} {[%emt 00:00:02]} b4 {[%clk
01:13:10]} {[%emt 00:00:41]} 23. Rc1 {[%clk 00:56:27]} {[%emt 00:02:49]} Qa3
{[%clk 01:09:37]} {[%emt 00:04:04]} 24. Qxa3 {[%clk 00:52:24]} {[%emt
00:04:33]} bxa3 {[%clk 01:10:02]} {[%emt 00:00:06]} 25. Kf1 {[%clk 00:52:49]}
{[%emt 00:00:04]} Nd7 {[%clk 01:07:09]} {[%emt 00:03:23]} 26. Ra1 {[%clk
00:52:52]} {[%emt 00:00:28]} Ra8 {[%clk 01:07:27]} {[%emt 00:00:13]} 27. Ke2
{[%clk 00:52:21]} {[%emt 00:01:00]} Nb6 {[%clk 01:05:11]} {[%emt 00:02:46]} 28.
Nd2 {[%clk 00:52:42]} {[%emt 00:00:09]} Nc4 {[%clk 01:00:44]} {[%emt 00:04:57]}
29. Nxc4 {[%clk 00:37:34]} {[%emt 00:15:38]} dxc4 {[%clk 01:01:10]} {[%emt
00:00:05]} 30. Kd2 {[%clk 00:37:58]} {[%emt 00:00:05]} f5 {[%clk 01:00:00]}
{[%emt 00:01:40]} 31. Kc2 {[%clk 00:35:46]} {[%emt 00:02:42]} Kf7 {[%clk
00:59:38]} {[%emt 00:00:51]} 32. Rb1 {[%clk 00:36:02]} {[%emt 00:00:14]} a2
{[%clk 00:56:09]} {[%emt 00:04:00]} 33. Ra1 {[%clk 00:36:23]} {[%emt 00:00:10]}
f4 {[%clk 00:56:24]} {[%emt 00:00:14]} 34. Kc3 {[%clk 00:33:53]} {[%emt
00:03:00]} fxe3 {[%clk 00:55:24]} {[%emt 00:01:29]} 35. fxe3 {[%clk 00:34:23]}
Ra4 {[%clk 00:51:02]} {[%emt 00:04:53]} 36. e4 {[%clk 00:29:46]} {[%emt
00:05:07]} Ra3+ {[%clk 00:48:31]} {[%emt 00:03:02]} 37. Kxc4 {[%clk 00:30:08]}
{[%emt 00:00:07]} Re3 {[%clk 00:48:55]} {[%emt 00:00:05]} 38. Rxa2 {[%clk
00:29:48]} {[%emt 00:00:51]} Rxe4 {[%clk 00:49:18]} {[%emt 00:00:07]} 39. Kd5
{[%clk 00:29:32]} {[%emt 00:00:45]} Re7 {[%clk 00:49:34]} {[%emt 00:00:15]} 40.
Kc6 {[%clk 00:29:24]} {[%emt 00:00:38]} Re6+ {[%clk 00:49:12]} {[%emt
00:00:53]} 41. Kc5 {[%clk 00:29:53]} {[%emt 00:00:01]} Ke7 {[%clk 00:48:41]}
{[%emt 00:01:00]} 42. g3 {[%clk 00:25:05]} {[%emt 00:05:19]} Re1 {[%clk
00:47:43]} {[%emt 00:01:28]} 43. Kd5 {[%clk 00:22:43]} {[%emt 00:02:52]} Rc1
{[%clk 00:46:02]} {[%emt 00:02:10]} 44. Re2+ {[%clk 00:22:47]} {[%emt
00:00:27]} Kd7 {[%clk 00:44:28]} {[%emt 00:02:04]} 45. Re6 {[%clk 00:22:08]}
{[%emt 00:01:09]} Rc2 {[%clk 00:43:28]} {[%emt 00:01:30]} 46. h4 {[%clk
00:22:26]} {[%emt 00:00:13]} Rc3 {[%clk 00:43:28]} {[%emt 00:00:29]} 47. Rg6
{[%clk 00:22:50]} {[%emt 00:00:06]} Ke7 {[%clk 00:43:02]} {[%emt 00:00:55]} 48.
Rxg7+ {[%clk 00:23:18]} {[%emt 00:00:03]} Kf6 {[%clk 00:43:28]} {[%emt
00:00:04]} 49. Rg4 {[%clk 00:23:20]} {[%emt 00:00:27]} Kf5 {[%clk 00:42:57]}
{[%emt 00:01:01]} 50. Rf4 {[%clk 00:23:42]} {[%emt 00:00:07]} Kg6 {[%clk
00:43:15]} {[%emt 00:00:14]} 51. g4 {[%clk 00:24:07]} {[%emt 00:00:05]} Rh3
{[%clk 00:43:37]} {[%emt 00:00:08]} 52. h5+ {[%clk 00:24:31]} {[%emt 00:00:05]}
Kg5 {[%clk 00:43:57]} {[%emt 00:00:10]} 53. Re4 {[%clk 00:24:58]} {[%emt
00:00:03]} Rg3 {[%clk 00:44:01]} {[%emt 00:00:27]} 54. Ke5 {[%clk 00:25:16]}
{[%emt 00:00:10]} Ra3 {[%clk 00:42:29]} {[%emt 00:02:05]} 55. d5 {[%clk
00:25:38]} {[%emt 00:00:07]} Ra8 {[%clk 00:42:46]} {[%emt 00:00:12]} 56. d6
{[%clk 00:25:59]} {[%emt 00:00:10]} Re8+ {[%clk 00:42:47]} {[%emt 00:00:29]} 57.
Kd5 {[%clk 00:26:25]} {[%emt 00:00:04]} Rc8 {[%clk 00:42:56]} {[%emt 00:00:20]}
58. d7 {[%clk 00:26:50]} {[%emt 00:00:06]} 1-0

[Event "NJSK 2026 Jeugd C"]
[Site "Helmond, Netherlands"]
[Date "2026.04.27"]
[Round "4.9"]
[White "Ngangbam, Chingthang"]
[Black "Gupta, Akul"]
[Result "0-1"]
[TimeControl "90min/40moves + 30sec/move"]
[WhiteTitle "-"]
[BlackTitle "-"]
[WhiteFideId "1086510"]
[BlackFideId "1084194"]
[WhiteElo "1937"]
[BlackElo "2017"]

1. e4 {[%clk 01:30:56]} {[%emt 00:00:03]} c5 {[%clk 01:30:56]} {[%emt
00:00:04]} 2. Nf3 {[%clk 01:31:19]} {[%emt 00:00:08]} e6 {[%clk 01:31:23]}
{[%emt 00:00:04]} 3. d4 {[%clk 01:31:44]} {[%emt 00:00:05]} cxd4 {[%clk
01:31:48]} {[%emt 00:00:04]} 4. Nxd4 {[%clk 01:32:08]} {[%emt 00:00:05]} Nf6
{[%clk 01:32:13]} {[%emt 00:00:05]} 5. Nc3 {[%clk 01:32:32]} {[%emt 00:00:07]}
Nc6 {[%clk 01:32:40]} {[%emt 00:00:04]} 6. Ndb5 {[%clk 01:32:35]} {[%emt
00:00:27]} Bc5 {[%clk 01:33:00]} {[%emt 00:00:09]} 7. Bf4 {[%clk 01:32:47]}
{[%emt 00:00:17]} O-O {[%clk 01:33:25]} {[%emt 00:00:05]} 8. Bc7 {[%clk
01:32:27]} {[%emt 00:00:51]} Qe7 {[%clk 01:33:51]} {[%emt 00:00:05]} 9. Bd6
{[%clk 01:32:46]} {[%emt 00:00:10]} Bxd6 {[%clk 01:34:17]} {[%emt 00:00:04]} 10.
Qxd6 {[%clk 01:33:05]} {[%emt 00:00:12]} Qd8 {[%clk 01:34:40]} {[%emt
00:00:07]} 11. O-O-O {[%emt 00:03:24]} a6 {[%clk 01:32:47]} 12. Nd4 {[%clk
01:23:00]} {[%emt 00:10:03]} Ne8 {[%clk 01:29:05]} {[%emt 00:04:12]} 13. Qg3
{[%clk 01:21:55]} {[%emt 00:01:35]} Qc7 {[%clk 01:14:33]} {[%emt 00:14:52]} 14.
f4 {[%clk 01:14:03]} {[%emt 00:08:31]} d6 {[%clk 01:11:18]} {[%emt 00:03:46]}
15. Nf3 {[%clk 01:09:42]} {[%emt 00:04:51]} b5 {[%clk 01:08:09]} {[%emt
00:03:38]} 16. Bd3 {[%clk 00:56:26]} {[%emt 00:13:47]} Nb4 {[%clk 01:05:09]}
{[%emt 00:03:30]} 17. e5 {[%clk 00:54:18]} {[%emt 00:02:37]} Nxd3+ {[%clk
01:05:06]} {[%emt 00:00:33]} 18. Rxd3 {[%clk 00:54:45]} {[%emt 00:00:03]} b4
{[%clk 01:02:55]} {[%emt 00:02:41]} 19. Ne4 {[%clk 00:53:05]} {[%emt 00:02:10]}
dxe5 {[%clk 00:58:15]} {[%emt 00:05:11]} 20. fxe5 {[%clk 00:51:17]} {[%emt
00:02:18]} Bb7 {[%clk 00:57:47]} {[%emt 00:00:57]} 21. Qg4 {[%clk 00:32:43]}
{[%emt 00:19:03]} Rc8 {[%clk 00:54:58]} {[%emt 00:03:21]} 22. Rd2 {[%clk
00:31:08]} {[%emt 00:02:05]} Qc4 {[%clk 00:53:26]} {[%emt 00:02:03]} 23. Nf6+
{[%clk 00:28:46]} {[%emt 00:02:51]} Nxf6 {[%clk 00:53:36]} {[%emt 00:00:20]} 24.
Qxc4 {[%clk 00:29:10]} {[%emt 00:00:06]} Rxc4 {[%clk 00:53:56]} {[%emt
00:00:09]} 25. exf6 {[%clk 00:29:35]} {[%emt 00:00:06]} gxf6 {[%clk 00:54:11]}
{[%emt 00:00:15]} 26. Rf1 {[%clk 00:28:30]} {[%emt 00:01:34]} Be4 {[%clk
00:51:50]} {[%emt 00:02:49]} 27. Nd4 {[%clk 00:24:19]} {[%emt 00:04:42]} Rd8
{[%clk 00:51:44]} {[%emt 00:00:36]} 28. Rfd1 {[%clk 00:23:35]} {[%emt
00:01:15]} Rdc8 {[%clk 00:49:54]} {[%emt 00:02:20]} 29. Re1 {[%clk 00:21:31]}
{[%emt 00:02:34]} Bg6 {[%clk 00:42:23]} {[%emt 00:08:01]} 30. Rf1 {[%clk
00:18:04]} {[%emt 00:03:57]} Rd8 {[%clk 00:34:34]} {[%emt 00:08:20]} 31. Rfd1
{[%clk 00:16:57]} {[%emt 00:01:36]} e5 {[%clk 00:33:57]} {[%emt 00:01:08]} 32.
Nf5 {[%clk 00:15:35]} {[%emt 00:01:49]} Rxd2 {[%clk 00:33:44]} {[%emt
00:00:45]} 33. Ne7+ {[%clk 00:15:57]} {[%emt 00:00:08]} Kf8 {[%clk 00:33:49]}
{[%emt 00:00:26]} 34. Nxg6+ {[%clk 00:16:18]} {[%emt 00:00:09]} fxg6 {[%clk
00:34:17]} {[%emt 00:00:02]} 35. Rxd2 {[%clk 00:16:32]} {[%emt 00:00:15]} Ke7
{[%clk 00:34:36]} {[%emt 00:00:11]} 36. Rd3 {[%clk 00:16:13]} {[%emt 00:00:49]}
Rf4 {[%clk 00:34:13]} {[%emt 00:00:54]} 37. g3 {[%clk 00:06:23]} {[%emt
00:10:20]} Rf1+ {[%clk 00:34:19]} {[%emt 00:00:24]} 38. Kd2 {[%clk 00:03:51]}
{[%emt 00:03:01]} Rf2+ {[%clk 00:34:42]} {[%emt 00:00:07]} 39. Ke3 {[%clk
00:04:17]} {[%emt 00:00:04]} Rxc2 {[%clk 00:35:06]} {[%emt 00:00:07]} 40. Rb3
{[%clk 00:04:43]} {[%emt 00:00:04]} a5 {[%clk 00:35:16]} {[%emt 00:00:19]} 41.
h4 {[%clk 00:04:41]} {[%emt 00:00:32]} Rc4 {[%clk 00:34:44]} {[%emt 00:01:03]}
42. a3 {[%clk 00:04:47]} {[%emt 00:00:24]} Ke6 {[%clk 00:34:02]} {[%emt
00:01:11]} 43. Rd3 {[%clk 00:04:55]} {[%emt 00:00:21]} bxa3 {[%clk 00:34:10]}
{[%emt 00:00:23]} 44. Rxa3 {[%clk 00:05:07]} {[%emt 00:00:19]} a4 {[%clk
00:34:11]} {[%emt 00:00:29]} 45. Rd3 {[%clk 00:05:18]} {[%emt 00:00:19]} Rb4
{[%clk 00:34:35]} {[%emt 00:00:06]} 46. Rd2 {[%clk 00:05:37]} {[%emt 00:00:10]}
Rb3+ {[%clk 00:35:00]} {[%emt 00:00:05]} 47. Kf2 {[%clk 00:06:01]} {[%emt
00:00:05]} h5 {[%clk 00:35:21]} {[%emt 00:00:09]} 48. Kg2 {[%clk 00:06:18]}
{[%emt 00:00:13]} Kf5 {[%clk 00:35:47]} {[%emt 00:00:06]} 49. Rf2+ {[%clk
00:06:18]} {[%emt 00:00:29]} Kg4 {[%clk 00:35:11]} {[%emt 00:01:07]} 50. Rxf6
{[%clk 00:06:38]} {[%emt 00:00:09]} Rxb2+ {[%clk 00:35:36]} {[%emt 00:00:05]}
51. Kg1 {[%clk 00:06:57]} {[%emt 00:00:11]} a3 {[%clk 00:35:10]} {[%emt
00:00:56]} 52. Rxg6+ {[%clk 00:07:13]} {[%emt 00:00:14]} Kh3 {[%clk 00:35:35]}
{[%emt 00:00:04]} 53. Ra6 {[%clk 00:07:32]} {[%emt 00:00:12]} a2 {[%clk
00:36:00]} {[%emt 00:00:06]} 0-1

[Event "NJSK 2026 Jeugd C"]
[Site "Helmond, Netherlands"]
[Date "2026.04.27"]
[Round "4.10"]
[White "Omnes, Tiago"]
[Black "Shaikh, Rushaan"]
[Result "1-0"]
[TimeControl "90min/40moves + 30sec/move"]
[WhiteTitle "-"]
[BlackTitle "-"]
[WhiteFideId "1091867"]
[BlackFideId "40113604"]
[WhiteElo "1990"]
[BlackElo "1842"]

1. Nf3 {[%clk 01:30:58]} g6 {[%clk 01:30:54]} {[%emt 00:00:08]} 2. e4 {[%clk
01:31:20]} {[%emt 00:00:08]} Bg7 {[%emt 00:00:10]} 3. d4 {[%clk 01:31:45]} d6
{[%clk 01:31:43]} {[%emt 00:00:05]} 4. c4 {[%clk 01:31:53]} {[%emt 00:00:22]}
Bg4 {[%clk 01:31:57]} {[%emt 00:00:15]} 5. Be2 {[%clk 01:32:09]} {[%emt
00:00:14]} Nc6 {[%clk 01:32:15]} {[%emt 00:00:13]} 6. Be3 {[%clk 01:32:32]}
{[%emt 00:00:06]} e5 {[%clk 01:30:41]} {[%emt 00:02:04]} 7. d5 {[%clk
01:32:18]} {[%emt 00:00:44]} Bxf3 {[%clk 01:31:00]} {[%emt 00:00:12]} 8. Bxf3
{[%clk 01:31:53]} {[%emt 00:00:54]} Nd4 {[%clk 01:31:23]} {[%emt 00:00:07]} 9.
Nc3 {[%clk 01:28:58]} {[%emt 00:03:25]} Ne7 {[%clk 01:28:13]} {[%emt 00:03:39]}
10. Be2 {[%clk 01:26:36]} {[%emt 00:02:52]} f5 {[%clk 01:24:32]} {[%emt
00:04:12]} 11. Bd3 {[%clk 01:16:41]} {[%emt 00:10:26]} Qd7 {[%clk 01:21:08]}
{[%emt 00:03:53]} 12. Qd2 {[%clk 01:15:19]} {[%emt 00:01:51]} h6 {[%clk
01:19:58]} {[%emt 00:01:41]} 13. O-O-O {[%clk 01:13:43]} {[%emt 00:02:06]} fxe4
{[%clk 01:16:27]} {[%emt 00:04:02]} 14. Bxe4 {[%clk 01:12:41]} {[%emt
00:01:32]} Ndf5 {[%clk 01:16:45]} {[%emt 00:00:12]} 15. Kb1 {[%clk 01:09:56]}
{[%emt 00:03:15]} a6 {[%clk 01:15:58]} {[%emt 00:01:16]} 16. f3 {[%clk
01:00:34]} {[%emt 00:09:52]} Nxe3 {[%clk 01:09:52]} {[%emt 00:06:37]} 17. Qxe3
{[%clk 01:01:01]} {[%emt 00:00:02]} Nf5 {[%clk 01:10:20]} {[%emt 00:00:02]} 18.
Qd3 {[%clk 01:00:20]} {[%emt 00:01:11]} Qf7 {[%clk 01:07:14]} {[%emt 00:03:36]}
19. Rde1 {[%clk 00:57:25]} {[%emt 00:03:26]} O-O-O {[%clk 01:03:23]} {[%emt
00:04:20]} 20. g4 {[%clk 00:56:48]} {[%emt 00:01:06]} Nh4 {[%clk 00:59:43]}
{[%emt 00:04:12]} 21. Re2 {[%clk 00:55:59]} {[%emt 00:01:18]} Bf6 {[%clk
00:56:24]} {[%emt 00:03:48]} 22. Qe3 {[%clk 00:47:52]} {[%emt 00:08:38]} Kb8
{[%clk 00:54:25]} {[%emt 00:02:28]} 23. Na4 {[%clk 00:45:15]} {[%emt 00:03:08]}
b6 {[%clk 00:51:57]} {[%emt 00:02:58]} 24. a3 {[%clk 00:34:46]} {[%emt
00:11:00]} Qd7 {[%clk 00:50:26]} {[%emt 00:01:59]} 25. Nc3 {[%clk 00:34:14]}
{[%emt 00:01:03]} Qe8 {[%clk 00:42:28]} {[%emt 00:08:27]} 26. b4 {[%clk
00:32:34]} {[%emt 00:02:11]} Kb7 {[%clk 00:31:55]} {[%emt 00:11:03]} 27. c5
{[%clk 00:31:33]} {[%emt 00:01:32]} Rb8 {[%clk 00:30:52]} {[%emt 00:01:32]} 28.
c6+ {[%clk 00:22:34]} {[%emt 00:09:29]} Kc8 {[%clk 00:30:36]} {[%emt 00:00:46]}
29. Bd3 {[%clk 00:22:40]} {[%emt 00:00:24]} Ra8 {[%clk 00:30:10]} {[%emt
00:00:57]} 30. Ne4 {[%clk 00:21:47]} {[%emt 00:01:22]} Be7 {[%clk 00:28:06]}
{[%emt 00:02:32]} 31. Rf1 {[%clk 00:14:38]} {[%emt 00:07:41]} g5 {[%clk
00:24:51]} {[%emt 00:03:44]} 32. Ng3 {[%clk 00:14:10]} {[%emt 00:00:58]} Ng6
{[%clk 00:24:07]} {[%emt 00:01:15]} 33. Bxg6 {[%clk 00:12:26]} {[%emt
00:02:15]} Qxg6+ {[%clk 00:24:35]} {[%emt 00:00:02]} 34. Qe4 {[%clk 00:12:11]}
{[%emt 00:00:45]} Rg8 {[%clk 00:23:53]} {[%emt 00:01:11]} 35. Nf5 {[%clk
00:11:54]} {[%emt 00:00:47]} Kd8 {[%clk 00:23:51]} {[%emt 00:00:32]} 36. Ka2
{[%clk 00:11:03]} {[%emt 00:01:21]} Rf8 {[%clk 00:22:02]} {[%emt 00:02:18]} 37.
f4 {[%clk 00:10:02]} {[%emt 00:01:32]} gxf4 {[%clk 00:19:06]} {[%emt 00:03:27]}
38. Rxf4 {[%clk 00:10:23]} {[%emt 00:00:08]} Bg5 {[%clk 00:17:46]} {[%emt
00:01:48]} 39. Rf3 {[%clk 00:09:32]} {[%emt 00:01:23]} Rg8 {[%clk 00:15:42]}
{[%emt 00:02:35]} 40. h4 {[%clk 00:05:34]} {[%emt 00:04:27]} Be7 {[%clk
00:13:35]} {[%emt 00:02:37]} 41. Rg3 {[%clk 00:05:47]} {[%emt 00:00:17]} Rf8
{[%clk 00:12:26]} {[%emt 00:01:38]} 42. Qe3 {[%clk 00:05:39]} {[%emt 00:00:38]}
h5 {[%clk 00:11:28]} {[%emt 00:01:29]} 43. Nxe7 {[%clk 00:05:18]} {[%emt
00:00:51]} Kxe7 {[%clk 00:11:54]} {[%emt 00:00:04]} 44. gxh5 {[%clk 00:04:33]}
{[%emt 00:01:15]} Qxh5 {[%clk 00:12:06]} {[%emt 00:00:19]} 45. Rh2 {[%clk
00:04:16]} {[%emt 00:00:46]} Rg8 {[%clk 00:11:24]} {[%emt 00:01:10]} 46. Rhg2
{[%clk 00:03:51]} {[%emt 00:00:57]} Rxg3 {[%clk 00:10:52]} {[%emt 00:01:02]} 47.
Qxg3 {[%clk 00:04:14]} {[%emt 00:00:07]} Rf8 {[%clk 00:10:51]} {[%emt
00:00:30]} 48. Qh3 {[%clk 00:03:57]} {[%emt 00:00:47]} Qf5 {[%clk 00:09:18]}
{[%emt 00:02:03]} 49. Rg7+ {[%clk 00:03:17]} {[%emt 00:01:11]} Kd8 {[%clk
00:09:36]} {[%emt 00:00:08]} 50. Qxf5 {[%clk 00:02:16]} {[%emt 00:01:32]} Rxf5
{[%clk 00:10:06]} 51. Rd7+ {[%clk 00:02:28]} {[%emt 00:00:21]} Kc8 {[%clk
00:10:19]} {[%emt 00:00:17]} 52. Rh7 {[%clk 00:02:47]} {[%emt 00:00:12]} Rf8
{[%clk 00:08:59]} {[%emt 00:01:50]} 53. Kb2 {[%clk 00:03:00]} {[%emt 00:00:16]}
Kd8 {[%clk 00:07:45]} {[%emt 00:01:44]} 54. h5 {[%clk 00:03:11]} {[%emt
00:00:19]} Rf3 {[%clk 00:02:30]} {[%emt 00:05:42]} 55. h6 {[%clk 00:03:35]}
{[%emt 00:00:09]} e4 {[%clk 00:01:56]} {[%emt 00:01:04]} 56. Rd7+ {[%clk
00:03:54]} {[%emt 00:00:11]} Ke8 {[%clk 00:01:32]} {[%emt 00:00:55]} 57. h7
{[%clk 00:04:14]} {[%emt 00:00:09]} Rh3 {[%clk 00:01:35]} {[%emt 00:00:27]} 58.
Rg7 {[%clk 00:04:34]} {[%emt 00:00:10]} e3 {[%clk 00:01:25]} {[%emt 00:00:41]}
59. Rg8+ {[%clk 00:04:45]} {[%emt 00:00:19]} Kf7 {[%clk 00:00:57]} {[%emt
00:00:57]} 60. h8=Q {[%clk 00:05:09]} {[%emt 00:00:07]} e2 {[%clk 00:01:07]}
{[%emt 00:00:20]} 61. Qg7# {[%clk 00:05:36]} {[%emt 00:00:02]} 1-0

[Event "NJSK 2026 Jeugd C"]
[Site "Helmond, Netherlands"]
[Date "2026.04.27"]
[Round "4.11"]
[White "Brorens, Victor"]
[Black "Huang, Ziyang"]
[Result "0-1"]
[TimeControl "90min/40moves + 30sec/move"]
[WhiteTitle "-"]
[BlackTitle "-"]
[WhiteFideId "1095307"]
[BlackFideId "40105288"]
[WhiteElo "1911"]
[BlackElo "1721"]

1. e4 {[%clk 01:31:00]} {[%emt 02:00:17]} c5 {[%clk 01:31:00]} 2. c3 {[%clk
01:31:29]} {[%emt 00:00:01]} d5 {[%clk 01:31:29]} {[%emt 00:00:02]} 3. exd5
{[%clk 01:31:58]} {[%emt 00:00:01]} Qxd5 {[%clk 01:31:50]} {[%emt 00:00:08]} 4.
d4 {[%clk 01:32:23]} {[%emt 00:00:06]} Nf6 {[%clk 01:32:17]} {[%emt 00:00:02]}
5. Nf3 {[%clk 01:32:49]} {[%emt 00:00:04]} Nc6 {[%clk 01:32:34]} {[%emt
00:00:13]} 6. Be2 {[%clk 01:33:12]} {[%emt 00:00:07]} e6 {[%clk 01:32:59]}
{[%emt 00:00:05]} 7. Bf4 {[%clk 01:33:15]} {[%emt 00:00:26]} Be7 {[%clk
01:33:13]} {[%emt 00:00:17]} 8. O-O {[%clk 01:32:57]} {[%emt 00:00:47]} O-O
{[%clk 01:33:33]} {[%emt 00:00:11]} 9. Ne5 {[%clk 01:32:45]} {[%emt 00:00:41]}
Nxe5 {[%clk 01:32:55]} {[%emt 00:01:08]} 10. dxe5 {[%clk 01:33:00]} {[%emt
00:00:15]} Qxd1 {[%clk 01:32:17]} {[%emt 00:01:08]} 11. Rxd1 {[%clk 01:33:29]}
{[%emt 00:00:02]} Nd5 {[%clk 01:32:19]} {[%emt 00:00:27]} 12. Bg3 {[%clk
01:33:55]} {[%emt 00:00:04]} Bd7 {[%clk 01:28:48]} {[%emt 00:04:02]} 13. c4
{[%clk 01:33:21]} {[%emt 00:01:04]} Nb6 {[%clk 01:26:52]} {[%emt 00:02:26]} 14.
Nc3 {[%clk 01:33:00]} {[%emt 00:00:51]} Bc6 {[%clk 01:26:58]} {[%emt 00:00:24]}
15. Rd2 {[%clk 01:31:59]} {[%emt 00:01:31]} Rfd8 {[%clk 01:25:55]} {[%emt
00:01:31]} 16. Rad1 {[%clk 01:31:42]} {[%emt 00:00:48]} Rxd2 {[%clk 01:25:47]}
{[%emt 00:00:38]} 17. Rxd2 {[%clk 01:32:10]} {[%emt 00:00:02]} Rd8 {[%clk
01:26:03]} {[%emt 00:00:14]} 18. Rxd8+ {[%emt 00:00:16]} Bxd8 {[%clk 01:26:32]}
19. f4 {[%clk 01:32:20]} {[%emt 00:00:35]} Nc8 {[%clk 01:24:33]} {[%emt
00:02:30]} 20. Kf2 {[%clk 01:32:23]} {[%emt 00:00:27]} Ne7 {[%clk 01:23:30]}
{[%emt 00:01:33]} 21. Bf3 {[%clk 01:32:06]} {[%emt 00:00:46]} Bxf3 {[%clk
01:23:02]} {[%emt 00:00:58]} 22. Kxf3 {[%clk 01:32:21]} {[%emt 00:00:16]} Nf5
{[%clk 01:23:30]} {[%emt 00:00:02]} 23. Bf2 {[%clk 01:32:49]} {[%emt 00:00:01]}
Nh4+ {[%clk 01:21:21]} {[%emt 00:02:39]} 24. Bxh4 {[%clk 01:33:12]} {[%emt
00:00:07]} Bxh4 {[%clk 01:21:41]} {[%emt 00:00:11]} 25. Nb5 {[%clk 01:33:16]}
{[%emt 00:00:26]} a6 {[%clk 01:19:22]} {[%emt 00:02:48]} 26. Nd6 {[%clk
01:32:56]} {[%emt 00:00:51]} b6 {[%clk 01:18:16]} {[%emt 00:01:35]} 27. a4
{[%clk 01:32:17]} {[%emt 00:01:09]} a5 {[%clk 01:16:43]} {[%emt 00:02:03]} 28.
Ke4 {[%clk 01:31:09]} {[%emt 00:01:39]} Kf8 {[%clk 01:14:54]} {[%emt 00:02:19]}
29. h3 {[%clk 01:30:25]} {[%emt 00:01:13]} Bd8 {[%clk 01:13:40]} {[%emt
00:01:44]} 30. g4 {[%clk 01:30:46]} {[%emt 00:00:09]} Ke7 {[%clk 01:10:02]}
{[%emt 00:04:06]} 31. g5 {[%clk 01:28:04]} {[%emt 00:03:13]} f6 {[%clk
01:07:50]} {[%emt 00:02:42]} 32. h4 {[%clk 01:23:41]} {[%emt 00:04:52]} f5+
{[%clk 01:07:41]} {[%emt 00:00:40]} 33. Kd3 {[%clk 01:19:47]} {[%emt 00:04:24]}
g6 {[%clk 01:07:17]} {[%emt 00:00:55]} 34. Nb7 {[%clk 01:18:47]} {[%emt
00:01:29]} Bc7 {[%clk 01:07:22]} {[%emt 00:00:26]} 35. b4 {[%clk 01:17:01]}
{[%emt 00:02:15]} cxb4 {[%clk 01:05:51]} {[%emt 00:02:01]} 36. c5 {[%clk
01:17:16]} {[%emt 00:00:15]} Kd7 {[%clk 01:04:16]} {[%emt 00:02:06]} 37. cxb6
{[%clk 01:16:11]} {[%emt 00:01:35]} Bxb6 {[%clk 01:03:39]} {[%emt 00:01:07]} 38.
Nd6 {[%clk 01:12:06]} {[%emt 00:04:34]} Kc6 {[%clk 01:00:47]} {[%emt 00:03:22]}
39. Ne8 {[%clk 01:09:59]} {[%emt 00:02:37]} Bf2 {[%clk 01:00:47]} {[%emt
00:00:31]} 40. Nf6 {[%clk 01:10:22]} {[%emt 00:00:07]} Bxh4 {[%clk 01:01:06]}
{[%emt 00:00:10]} 41. Nxh7 {[%clk 01:10:18]} {[%emt 00:00:34]} Bg3 {[%clk
01:01:21]} {[%emt 00:00:16]} 42. Ke3 {[%clk 01:10:30]} {[%emt 00:00:18]} Bxf4+
{[%clk 01:01:32]} {[%emt 00:00:19]} 43. Kxf4 {[%clk 01:10:40]} {[%emt
00:00:20]} b3 {[%clk 01:01:58]} {[%emt 00:00:04]} 0-1